Cogmind - Beta 10.1 @@@ ROGUE MODE // 2021.05.10 @ 07:52:04 Player: Farfid Result: Destroyed by as-24020 with Assembled Focal Cannon Performance ------------- Evolutions (4) 2000 Regions Visited (15) 3000 Robots Destroyed (101) 505 Value Destroyed (3328) 3328 Prototype IDs (29) 580 Alien Tech Used (0) 0 Bonus (2322) 2322 TOTAL SCORE: 11735 Bonus ------- Follower Combat Kills 238 Met Data Miner 300 Met Imprinter 300 Was Imprinted 300 Destroyed Z-Imprinter 1000 Exposed GOLEM Chamber 500 Friendly Fire -316 Cogmind --------- Core Integrity 0/850 Matter 257/300 Energy 87/100 System Corruption 1% Temperature Cool (15) Movement Core (550) Ox10 Location -6/Deep Caves Parts ------- > --- POWER (2) -------- Zionite Light DM Reactor Zionite Light DM Reactor > --- PROPULSION (3) --- Zionite Composite Leg I > --- UTILITY (7) ------ Experimental Heat Sink Advanced Targeting Computer Zionite Weapon Casing Zionite Weapon Casing > --- WEAPON (3) ------- Zionite Laser-M Shock Bomb Launcher > --- INVENTORY (4) ---- Zionite Light DM Reactor Zionite Weapon Casing Zionite Phaser-S CR-A16's Pointy Stick Peak State ------------ > --- POWER ------------ Zionite Light DM Reactor Zionite Light DM Reactor > --- PROPULSION ------- Zionite Glidesys I Zionite Glidesys II Zionite Glidesys II > --- UTILITY ---------- Experimental Heat Sink High-capacity Storage Unit Zionite Biocell Advanced Targeting Computer Zionite Weapon Casing Zionite Weapon Casing Zionite Light Carapace > --- WEAPON ----------- Zionite Laser-M Zionite Laser-M Shock Bomb Launcher > --- INVENTORY -------- Zionite Glidesys I Coolant Injector High-capacity Storage Unit Zionite Metafield Generator Improved Particle Charger Makeshift Transmission Jammer Zionite Weapon Casing Hacking Drone Bay CR-A16's Pointy Stick [Rating: 96] Favorites ----------- Power Fission Core Engine Deuterium Engine Power Core Fission Core Reactor Zionite Light DM Reactor Propulsion Flexi-carbon Leg Treads Improved Medium Treads Leg Flexi-carbon Leg Wheel Wheel Hover Unit Zionite Glidesys I Utility High-capacity Storage Unit Device Coolant Injector Storage High-capacity Storage Unit Processor Advanced Targeting Computer Protection Improved Medium Armor Plating Weapon Cooled Plasma Cannon Energy Gun Lightning Gun Energy Cannon Cooled Plasma Cannon Ballistic Gun Gauss Rifle Ballistic Cannon Antimatter Cannon Launcher Shock Bomb Launcher Piercing Weapon CR-A16's Pointy Stick Build | -11 -10 -10 -10 -9 -8 -7 -7 -7 -7 -6 -6 -6 -6 -6 -6 ------- Run | Scr Mat Min Exi Min Mat Fac Low Low Dat Pro Fac Low Low Zio Dee Slots Evolved 8 | . . . . . 4 2 . . . . 2 . . . . Power 1 | . . . . . . . . . . . 1 . . . . Propulsion 1 | . . . . . . 1 . . . . . . . . . Utility 5 | . . . . . 3 1 . . . . 1 . . . . Weapon 1 | . . . . . 1 . . . . . . . . . . Parts Attached 197 | 7 2 9 1 4 35 8 25 9 1 12 18 5 3 4 54 Power 18 | 1 1 2 . . 3 . . 1 . . 4 . . . 6 Engine 8 | 1 1 2 . . 2 . . . . . 2 . . . . Core 5 | . . . . . 1 . . 1 . . 2 . . . 1 Reactor 5 | . . . . . . . . . . . . . . . 5 Propulsion 46 | 2 1 1 . 1 4 1 14 1 . 7 1 1 1 . 11 Treads 4 | . . . . . . . 3 . . 1 . . . . . Leg 17 | . . . . . . . 5 . . 5 1 1 1 . 4 Wheel 18 | 2 1 1 . 1 4 1 6 1 . 1 . . . . . Hover 7 | . . . . . . . . . . . . . . . 7 Flight . | . . . . . . . . . . . . . . . . Utility 60 | 1 . 2 1 1 10 3 2 5 . 4 5 2 1 4 19 Device 21 | . . 1 . . 6 2 1 . . 1 1 2 1 2 4 Storage 13 | 1 . 1 1 . . . 1 2 . 2 2 . . . 3 Processor 2 | . . . . . 1 . . . . . 1 . . . . Hackware . | . . . . . . . . . . . . . . . . Protection 24 | . . . . 1 3 1 . 3 . 1 1 . . 2 12 Artifact . | . . . . . . . . . . . . . . . . Weapon 73 | 3 . 4 . 2 18 4 9 2 1 1 8 2 1 . 18 Energy Gun 26 | 1 . . . . 11 1 4 . . . 2 . . . 7 Energy Cannon 11 | . . . . . . . 2 . . . 2 2 1 . 4 Ballistic Gun 28 | 2 . 4 . 2 7 3 3 2 1 1 3 . . . . Ballistic Cannon 1 | . . . . . . . . . . . 1 . . . . Launcher 6 | . . . . . . . . . . . . . . . 6 Special Weapon . | . . . . . . . . . . . . . . . . Impact Weapon . | . . . . . . . . . . . . . . . . Slashing Weapon . | . . . . . . . . . . . . . . . . Piercing Weapon 1 | . . . . . . . . . . . . . . . 1 Special Melee Weapon . | . . . . . . . . . . . . . . . . Unidentified Prototypes 21 | . . . . . 3 1 . . . . 3 . . 1 13 Parts Lost 71 | . 2 . . 3 11 . 10 2 . 4 . . 3 . 36 Power 7 | . 1 . . . 1 . . . . . . . . . 5 Propulsion 20 | . 1 . . 1 2 . 3 . . 1 . . 1 . 11 Utility 22 | . . . . 1 2 . 3 1 . 2 . . 1 . 12 Weapon 22 | . . . . 1 6 . 4 1 . 1 . . 1 . 8 Highest Loss Streak 19 | . 2 . . 2 3 . 5 1 . 4 . . 3 . 19 Average Slot Usage (%) 95 | . 83 98 100 97 95 96 95 97 100 91 99 100 97 99 81 Engine 4 | . 14 14 14 14 8 7 7 2 . . 3 . . . . Core 5 | . . . . . . . . 4 7 7 7 13 13 13 4 Treads 2 | . . . . . . . 2 15 15 12 . . . . . Leg 10 | . . . . . . . 7 . . 4 20 20 19 20 7 Wheel 7 | . 28 26 28 26 16 21 10 6 7 1 . . . . . Device 12 | . . 13 14 2 22 20 8 15 15 10 13 13 12 16 8 Storage 12 | . 14 14 14 14 9 7 13 19 15 15 13 13 13 13 7 Processor 4 | . . . . . 7 7 7 5 . . 5 6 6 6 6 Protection 9 | . . . . 10 4 7 12 2 15 14 13 13 13 9 14 Energy Gun 4 | . . . . . 14 6 12 1 . . 2 6 . . 6 Energy Cannon 4 | . . . . . . . 1 . . . 3 6 11 13 3 Ballistic Gun 11 | . 26 28 28 28 11 15 7 20 23 22 12 6 6 6 1 Naked Turns . | . . . . . . . . . . . . . . . . Heaviest Build 94 | 12 12 21 45 46 60 66 71 78 76 76 94 94 94 94 94 Greatest Support 78 | 26 26 26 26 26 32 30 30 50 10 78 60 56 56 56 78 Greatest Overweight (x) 7 | . . 1 1 2 5 3 6 7 7 4 1 1 2 1 4 Average Overweight (x) 1 | . . . . 1 1 2 2 3 7 1 1 1 1 1 . Largest Inventory Capacity 12 | 6 6 8 12 12 12 12 12 12 12 12 12 12 12 12 12 Average Capacity 11 | 5 6 7 10 12 12 12 12 12 12 12 12 12 12 12 7 Most Carried 12 | 4 6 8 9 11 12 12 12 12 12 12 12 12 12 12 12 Average Carried 10 | 2 3 6 8 9 10 11 11 11 12 11 11 12 11 11 7 Final Capacity 12 | 6 6 8 12 12 12 12 12 12 12 12 12 12 12 12 4 Final Carried 12 | 2 6 8 9 11 10 12 12 12 12 11 12 12 11 12 4 Class Distribution -------------------- 35% | Scavenger-Mutant 32% | Scavenger-Tank 17% | Scavenger-Gunner 12% | Mutant Dominant Class ---------------- Mutant | -10/Materials Mutant | -10/Mines Scavenger-Mutant | -10/Exiles Mutant | -9/Mines Scavenger-Gunner | -8/Materials Scavenger-Gunner | -7/Factory Scavenger-Mutant | -7/Lower Caves Scavenger-Gunner | -7/Lower Caves Scavenger-Tank | -7/Data Miner Scavenger-Tank | -6/Proximity Caves Scavenger-Tank | -6/Factory Scavenger-Mutant | -6/Lower Caves Scavenger-Mutant | -6/Lower Caves Scavenger-Gunner | -6/Zion Scavenger-Mutant | -6/Deep Caves Resources | -11 -10 -10 -10 -9 -8 -7 -7 -7 -7 -6 -6 -6 -6 -6 -6 ----------- Run | Scr Mat Min Exi Min Mat Fac Low Low Dat Pro Fac Low Low Zio Dee Matter Collected 2996 | 233 39 386 10 199 476 136 240 165 . 267 201 85 42 30 487 Remotely 529 | . . 279 . 94 . 136 20 . . . . . . . . Salvage Created 4408 | . 39 146 . 146 1143 214 590 273 . 268 425 332 185 . 647 Parts 239 | . 4 7 . 19 69 9 31 11 . 9 28 11 4 . 37 Haulers Intercepted 1 | . . . . . 1 . . . . . . . . . . Recyclers Shooed 6 | . . . . 1 1 1 . . . . 3 . . . . Parts Field Recycled . | . . . . . . . . . . . . . . . . Retrieved Matter . | . . . . . . . . . . . . . . . . Parts Self-Destructed 47 | . . . . . . . 11 9 . 16 . 8 3 . . Prevented 27 | . . . . . . . 17 . . 7 . 3 . . . Kills | -11 -10 -10 -10 -9 -8 -7 -7 -7 -7 -6 -6 -6 -6 -6 -6 ------- Run | Scr Mat Min Exi Min Mat Fac Low Low Dat Pro Fac Low Low Zio Dee Combat Hostiles Destroyed 80 | . 3 . . 6 20 1 10 7 . 4 8 7 3 . 11 Melee 1 | . . . . . . . . . . . . . . . 1 Guns 58 | . 3 . . 6 19 1 8 7 . 4 4 3 . . 3 Cannons 11 | . . . . . . . . . . . 3 3 3 . 2 AOE 6 | . . . . . 1 . . . . . 1 1 . . 3 Classes Destroyed 17 | . 1 3 . 2 6 . 3 . . . . . . . 2 Worker 8 | . . 1 . 1 2 . . . . . 4 . . . . Builder 3 | . . . . . 1 . . . . . 2 . . . . Tunneler 2 | . . 1 . . 1 . . . . . . . . . . Hauler 1 | . . . . . 1 . . . . . . . . . . Recycler 3 | . . 1 . . . 2 . . . . . . . . . Operator 1 | . . . . . 1 . . . . . . . . . . Watcher 1 | . . . . . 1 . . . . . . . . . . Swarmer 24 | . 3 . . 4 3 . 3 4 . . 4 3 . . . Grunt 26 | . . . . 1 9 . 4 2 . 4 . 3 3 . . Duelist 1 | . . . . 1 . . . . . . . . . . . Sentry 11 | . . . . . 5 1 . 1 . . 3 1 . . . Hunter 4 | . . . . . 3 . 1 . . . . . . . . Programmer 2 | . . . . . . . 1 . . . 1 . . . . Behemoth 1 | . . . . . . . 1 . . . . . . . . Enhanced Grunt 1 | . . . . . . . . . . . 1 . . . . Z-Light 7 | . . . . . . . . . . . . . . . 7 Samaritan 1 | . . . . . . . 1 . . . . . . . . Assembled 3 | . . . . . . . . . . . . . . . 3 Best Kill Streak 12 | . 3 1 . 5 12 2 4 4 . 4 6 3 3 . 3 Combat Bots Only 6 | . 3 . . 5 6 1 4 4 . 4 4 3 3 . 3 Max Kills in Single Turn 6 | . 1 1 . 1 2 1 1 1 . 1 6 1 1 . 1 Gunslinging . | . . . . . . . . . . . . . . . . Exploded 1 | . . . . . 1 . . . . . 1 1 . . 1 Melee 1 | . . . . . . . . . . . . . . . 1 Uniques/NPCs Destroyed 1 | . . . . . . . . . . . . . . . 1 Z-Imprinter (-6/Deep Caves) Combat | -11 -10 -10 -10 -9 -8 -7 -7 -7 -7 -6 -6 -6 -6 -6 -6 -------- Run | Scr Mat Min Exi Min Mat Fac Low Low Dat Pro Fac Low Low Zio Dee Damage Taken 9903 | . 263 28 . 391 1099 48 1262 334 . 866 522 392 440 . 4258 Core 1423 | . 63 14 . 69 125 10 223 5 . 58 . 24 . . 832 Absorbed by Shields . | . . . . . . . . . . . . . . . . Core Remaining (%) 68 | 100 . . . 41 77 . . . . 57 . . . . . Volleys Fired 278 | . 16 8 . 29 56 4 38 12 . 14 19 15 10 . 57 Largest 3 | . 2 2 . 2 3 3 3 3 . 3 3 2 2 . 2 Hottest 153 | . 40 43 . 43 142 84 153 79 . 86 125 120 70 . 140 Shots Fired 568 | . 32 16 . 58 154 12 73 29 . 39 35 30 20 . 70 Gun 455 | . 32 16 . 58 154 12 64 29 . 39 16 14 3 . 18 Cannon 84 | . . . . . . . 9 . . . 19 16 17 . 23 Launcher 29 | . . . . . . . . . . . . . . . 29 Special . | . . . . . . . . . . . . . . . . Kinetic 269 | . 32 16 . 58 64 9 5 29 . 39 14 . 3 . . Thermal 167 | . . . . . 63 3 10 . . . 19 16 17 . 39 Explosive . | . . . . . . . . . . . . . . . . Electromagnetic 132 | . . . . . 27 . 58 . . . 2 14 . . 31 Robot Hit Streak 21 | . 3 10 . 9 18 10 20 21 . 5 5 7 6 . 3 Robot Miss Streak 6 | . 6 1 . 4 3 . 2 5 . 2 3 1 2 . 4 Penetration Max 1 | . . . . . . . . . . 1 . . . . . Secondary Targets 5 | . . . . 3 . . 1 . . 1 . . . . . Max Gunslinging Chain 1 | . . . . 1 . . 1 . . 1 . . . . . Shots Hit Robots 355 | . 12 14 . 32 106 8 56 19 . 26 19 21 12 . 30 Core Hits 186 | . 3 7 . 10 54 5 22 10 . 10 19 11 7 . 28 Critical Hits 2 | . . . . . . . . . . . 1 . 1 . . Critical Kills . | . . . . . . . . . . . . . . . . Critical Parts Destroyed 2 | . . . . . . . . . . . 1 . 1 . . Melee Attacks 1 | . . . . . . . . . . . . . . . 1 Impact . | . . . . . . . . . . . . . . . . Slashing . | . . . . . . . . . . . . . . . . Piercing 1 | . . . . . . . . . . . . . . . 1 Sneak Attacks . | . . . . . . . . . . . . . . . . Combat Hostiles . | . . . . . . . . . . . . . . . . Follow-up Attacks . | . . . . . . . . . . . . . . . . Damage Inflicted 9359 | . 93 134 . 433 1756 162 1028 421 . 608 1757 835 453 . 1679 Guns 4991 | . 93 134 . 433 1610 162 812 421 . 608 224 217 48 . 229 Cannons 2001 | . . . . . . . 216 . . . 405 298 405 . 677 Explosions 2335 | . . . . . 146 . . . . . 1128 320 . . 741 Melee 32 | . . . . . . . . . . . . . . . 32 Ramming . | . . . . . . . . . . . . . . . . Kinetic 2584 | . 93 134 . 433 538 105 20 421 . 608 184 . 48 . . Thermal 4628 | . . . . . 858 57 216 . . . 1533 618 405 . 941 Explosive . | . . . . . . . . . . . . . . . . Electromagnetic 2115 | . . . . . 360 . 792 . . . 40 217 . . 706 Impact . | . . . . . . . . . . . . . . . . Slashing . | . . . . . . . . . . . . . . . . Piercing 32 | . . . . . . . . . . . . . . . 32 Highest Corruption 1 | . . . . . . . . . . . . . . . 1 Average Corruption 1 | . . . . . . . . . . . . . . . 1 Corruption Purged . | . . . . . . . . . . . . . . . . Effects 2 | . . . . . . . . . . . . . . . 2 Energy Discharges 1 | . . . . . . . . . . . . . . . 1 Data Loss (minor) 1 | . . . . . . . . . . . . . . . 1 Overload Shots 15 | . . . . . . . . . . . 4 . . . 11 Effects 1 | . . . . . . . . . . . . . . . 1 Heat Surge 1 | . . . . . . . . . . . . . . . 1 Overflow Damage 483 | . . . . . 15 . . . . . 333 34 . . 101 Projectiles 124 | . . . . . . . . . . . 12 11 . . 101 Explosions 359 | . . . . . 15 . . . . . 321 23 . . . Melee . | . . . . . . . . . . . . . . . . Knockbacks . | . . . . . . . . . . . . . . . . Impact . | . . . . . . . . . . . . . . . . Kinetic . | . . . . . . . . . . . . . . . . Secondary . | . . . . . . . . . . . . . . . . Self-Inflicted Damage 322 | . . . . . 85 . . . . . 111 . . . 126 Shots 10 | . . . . . 2 . . . . . 2 . . . 6 Rammed . | . . . . . . . . . . . . . . . . Targets Rammed . | . . . . . . . . . . . . . . . . Kicked . | . . . . . . . . . . . . . . . . Crushed . | . . . . . . . . . . . . . . . . Highest Temperature 349 | . . . . 1 99 . 120 4 . 199 152 90 162 . 349 Average Temperature 69 | . . . . 1 24 . 40 4 . 123 48 48 80 . 93 Received Heat Transfer 2424 | . 78 18 . 78 360 12 168 78 . 327 . 45 141 . 1119 Effects 1 | . . . . . . . . . . . . . . . 1 Damage (minor) 1 | . . . . . . . . . . . . . . . 1 Siege Activations . | . . . . . . . . . . . . . . . . Robots Corrupted 5 | . . . . . . . 3 . . . . . . . 2 Combat Hostiles 4 | . . . . . . . 2 . . . . . . . 2 Parts Fried 18 | . . . . . . . 5 . . . . . . . 13 Impact Corruptions . | . . . . . . . . . . . . . . . . Robots Melted . | . . . . . . . . . . . . . . . . Combat Hostiles . | . . . . . . . . . . . . . . . . Parts Melted 6 | . . . . . 4 . . . . . 2 . . . . Heat Transferred 5533 | . . . . . 1889 111 296 . . . 1280 650 600 . 707 Parts Sabotaged . | . . . . . . . . . . . . . . . . Parts Stolen . | . . . . . . . . . . . . . . . . Parts Stripped . | . . . . . . . . . . . . . . . . Power Chain Reactions 5 | . . . . . 3 . . . . . . 1 . . 1 Missiles Intercepted . | . . . . . . . . . . . . . . . . Alert | -11 -10 -10 -10 -9 -8 -7 -7 -7 -7 -6 -6 -6 -6 -6 -6 ------- Run | Scr Mat Min Exi Min Mat Fac Low Low Dat Pro Fac Low Low Zio Dee Peak Influence 347 | . 144 98 . 125 347 230 . . . . 300 . . . . Initial 157 | . . 48 . . 48 157 . . . . 38 . . . . Average 134 | . 57 55 . 99 180 177 . . . . 161 . . . . Maximum Alert Level 1 | . . . . . 1 1 . . . . 1 . . . . Low Security (%) 78 | 100 100 100 . 100 53 74 . . . . 76 . . . . Level 1 21 | . . . . . 46 25 . . . . 23 . . . . Level 2 . | . . . . . . . . . . . . . . . . Level 3 . | . . . . . . . . . . . . . . . . Level 4 . | . . . . . . . . . . . . . . . . Level 5 . | . . . . . . . . . . . . . . . . High Security . | . . . . . . . . . . . . . . . . Max Security . | . . . . . . . . . . . . . . . . Squads Dispatched 8 | . 2 . . . 2 1 . . . . 3 . . . . Investigation 1 | . 1 . . . . . . . . . . . . . . Extermination 1 | . . . . . . . . . . . 1 . . . . Reinforcement 3 | . 1 . . . 1 1 . . . . . . . . . Assault . | . . . . . . . . . . . . . . . . Garrison 3 | . . . . . 1 . . . . . 2 . . . . Intercept . | . . . . . . . . . . . . . . . . Construction Impeded . | . . . . . . . . . . . . . . . . Haulers Reinforced . | . . . . . . . . . . . . . . . . Stealth | -11 -10 -10 -10 -9 -8 -7 -7 -7 -7 -6 -6 -6 -6 -6 -6 --------- Run | Scr Mat Min Exi Min Mat Fac Low Low Dat Pro Fac Low Low Zio Dee Distress Signals 5 | . . . . . 3 . . . . . 2 . . . . Communications Jammed . | . . . . . . . . . . . . . . . . Distress Signals . | . . . . . . . . . . . . . . . . Times Spotted 115 | . 8 4 . 6 29 1 13 7 . 6 12 11 3 . 15 Peak Tracking Total 7 | . 4 2 . 4 7 1 4 4 . 4 4 3 3 . 6 Tactical Retreats 12 | . . . . . 4 . 3 . . . . 4 . . 1 Traps | -11 -10 -10 -10 -9 -8 -7 -7 -7 -7 -6 -6 -6 -6 -6 -6 ------- Run | Scr Mat Min Exi Min Mat Fac Low Low Dat Pro Fac Low Low Zio Dee Traps Triggered 4 | . 2 . . . 1 . . . . . 1 . . . . Indirectly . | . . . . . . . . . . . . . . . . Trap Hack Attempts . | . . . . . . . . . . . . . . . . Triggered . | . . . . . . . . . . . . . . . . Disarmed . | . . . . . . . . . . . . . . . . Reprogrammed . | . . . . . . . . . . . . . . . . Reused . | . . . . . . . . . . . . . . . . Traps Extracted . | . . . . . . . . . . . . . . . . Installed . | . . . . . . . . . . . . . . . . Triggered 3 | . . . . . . . . . . 3 . . . . . Machines | -11 -10 -10 -10 -9 -8 -7 -7 -7 -7 -6 -6 -6 -6 -6 -6 ---------- Run | Scr Mat Min Exi Min Mat Fac Low Low Dat Pro Fac Low Low Zio Dee Machines Disabled 12 | . 1 . . . 1 . . . . . 8 . . . 2 Max in Single Turn 4 | . 1 . . . 1 . . . . . 4 . . . 1 Garrison Access 1 | . . . . . . 1 . . . . . . . . . Machines Sabotaged . | . . . . . . . . . . . . . . . . Garrisons Compromised . | . . . . . . . . . . . . . . . . Overloaded Fab Kills . | . . . . . . . . . . . . . . . . Fab Network Shutdowns . | . . . . . . . . . . . . . . . . Hacking | -11 -10 -10 -10 -9 -8 -7 -7 -7 -7 -6 -6 -6 -6 -6 -6 --------- Run | Scr Mat Min Exi Min Mat Fac Low Low Dat Pro Fac Low Low Zio Dee Machines Accessed 21 | . 3 . 1 . 3 2 2 1 4 1 4 . . . . Terminals 10 | . 2 . . . 2 1 1 . . 1 3 . . . . Fabricators . | . . . . . . . . . . . . . . . . Repair Stations 1 | . . . . . 1 . . . . . . . . . . Recycling Units 1 | . 1 . . . . . . . . . . . . . . Scanalyzers 1 | . . . . . . . . . . . 1 . . . . Garrison Access 1 | . . . . . . 1 . . . . . . . . . Total Hacks 52 | . 8 . 4 . 5 2 4 1 21 2 5 . . . . Successful 43 | . 5 . 4 . 2 2 4 1 21 2 2 . . . . Failed 9 | . 3 . . . 3 . . . . . 3 . . . . Catastrophic 3 | . 1 . . . 1 . . . . . 1 . . . . Database Lockouts . | . . . . . . . . . . . . . . . . Manual 13 | . 4 . . . 3 . . . . . 2 . . 4 . Terminals 19 | . 6 . . . 3 1 3 . . 2 4 . . . . Fabricators . | . . . . . . . . . . . . . . . . Repair Stations 2 | . . . . . 2 . . . . . . . . . . Recycling Units 2 | . 2 . . . . . . . . . . . . . . Scanalyzers 1 | . . . . . . . . . . . 1 . . . . Garrison Access 1 | . . . . . . 1 . . . . . . . . . Terminal Hacks 40 | . 4 . 4 . 1 1 4 1 21 2 2 . . . . Record 20 | . . . 4 . . . 3 . 11 2 . . . . . Part Schematic 3 | . . . . . . . . . 3 . . . . . . Robot Schematic 4 | . . . . . . . . . 4 . . . . . . Prototype ID Bank 3 | . . . . . . . . . 3 . . . . . . Open Door 2 | . . . . . . . 1 1 . . . . . . . Branch Access Points 2 | . 1 . . . . . . . . . 1 . . . . Terminal Index 1 | . . . . . . . . . . . 1 . . . . Unreport Threat 1 | . . . . . 1 . . . . . . . . . . Hauler Manifests 1 | . 1 . . . . . . . . . . . . . . Registered Components 1 | . 1 . . . . . . . . . . . . . . Zone Layout 2 | . 1 . . . . 1 . . . . . . . . . Fabricator Hacks . | . . . . . . . . . . . . . . . . Repair Station Hacks 1 | . . . . . 1 . . . . . . . . . . Scan Component 1 | . . . . . 1 . . . . . . . . . . Recycling Unit Hacks . | . . . . . . . . . . . . . . . . Scanalyzer . | . . . . . . . . . . . . . . . . Garrison Access Hacks 1 | . . . . . . 1 . . . . . . . . . Seal Access 1 | . . . . . . 1 . . . . . . . . . Unauthorized Hacks 1 | . 1 . . . . . . . . . . . . . . Terminals . | . . . . . . . . . . . . . . . . Fabricators . | . . . . . . . . . . . . . . . . Repair Stations . | . . . . . . . . . . . . . . . . Recycling Units 1 | . 1 . . . . . . . . . . . . . . Tunnel 1 | . 1 . . . . . . . . . . . . . . Scanalyzers . | . . . . . . . . . . . . . . . . Garrison Access . | . . . . . . . . . . . . . . . . Data Cores Recovered . | . . . . . . . . . . . . . . . . Used . | . . . . . . . . . . . . . . . . Hacking Detections 11 | . 3 . . . 3 1 . . . . 4 . . . . Full Trace Events . | . . . . . . . . . . . . . . . . Feedback Events . | . . . . . . . . . . . . . . . . Feedback Blocked . | . . . . . . . . . . . . . . . . Robot Schematics Acquired 4 | . . . . . . . . . 4 . . . . . . Robots Built . | . . . . . . . . . . . . . . . . Matter . | . . . . . . . . . . . . . . . . Time . | . . . . . . . . . . . . . . . . Total Robot Build Rating . | . . . . . . . . . . . . . . . . Part Schematics Acquired 3 | . . . . . . . . . 3 . . . . . . Parts Built . | . . . . . . . . . . . . . . . . Matter . | . . . . . . . . . . . . . . . . Time . | . . . . . . . . . . . . . . . . Total Part Build Rating . | . . . . . . . . . . . . . . . . Parts Repaired . | . . . . . . . . . . . . . . . . Time . | . . . . . . . . . . . . . . . . Parts Recycled . | . . . . . . . . . . . . . . . . Recycled Matter . | . . . . . . . . . . . . . . . . Retrieved Matter . | . . . . . . . . . . . . . . . . Retrieved Components . | . . . . . . . . . . . . . . . . Parts Scanalyzed . | . . . . . . . . . . . . . . . . Part Schematics Acquired . | . . . . . . . . . . . . . . . . Parts Damaged . | . . . . . . . . . . . . . . . . Bothacking | -11 -10 -10 -10 -9 -8 -7 -7 -7 -7 -6 -6 -6 -6 -6 -6 ------------ Run | Scr Mat Min Exi Min Mat Fac Low Low Dat Pro Fac Low Low Zio Dee Used RIF Installer . | . . . . . . . . . . . . . . . . Robots Hacked . | . . . . . . . . . . . . . . . . Non-combat . | . . . . . . . . . . . . . . . . Combat . | . . . . . . . . . . . . . . . . Robot Hacks Applied . | . . . . . . . . . . . . . . . . Relay Couplers Released . | . . . . . . . . . . . . . . . . Robots Rewired . | . . . . . . . . . . . . . . . . Allies Hacked . | . . . . . . . . . . . . . . . . Hacks Repelled . | . . . . . . . . . . . . . . . . Allies | -11 -10 -10 -10 -9 -8 -7 -7 -7 -7 -6 -6 -6 -6 -6 -6 -------- Run | Scr Mat Min Exi Min Mat Fac Low Low Dat Pro Fac Low Low Zio Dee Total Allies 8 | . . 3 . . . . . . . 1 . . . 4 . Largest Group 4 | . . 3 . . . . . . . 1 1 . . 4 3 Highest-Rated Group 148 | . . 40 . . . . . . . 94 94 . . 148 113 Highest-Rated Ally 94 | . . 16 . . . . . . . 94 94 . . 40 40 Total Orders . | . . . . . . . . . . . . . . . . Ally Attacks 31 | . . 17 . . . . . . . 5 9 . . . . Total Damage 818 | . . 213 . . . . . . . 230 375 . . . . Kills 8 | . . 2 . . . . . . . 2 4 . . . . Allies Corrupted . | . . . . . . . . . . . . . . . . Allies Melted . | . . . . . . . . . . . . . . . . Intel | -11 -10 -10 -10 -9 -8 -7 -7 -7 -7 -6 -6 -6 -6 -6 -6 ------- Run | Scr Mat Min Exi Min Mat Fac Low Low Dat Pro Fac Low Low Zio Dee Robot Analysis Total . | . . . . . . . . . . . . . . . . Derelict Logs Recovered 9 | . . 2 . . . . 1 1 . 1 . 1 1 2 . Drone Launches . | . . . . . . . . . . . . . . . . Drone Recoveries . | . . . . . . . . . . . . . . . . Exploration | -11 -10 -10 -10 -9 -8 -7 -7 -7 -7 -6 -6 -6 -6 -6 -6 ------------- Run | Scr Mat Min Exi Min Mat Fac Low Low Dat Pro Fac Low Low Zio Dee Turns Passed 8970 | 56 140 549 217 254 719 173 1035 441 122 585 1057 537 504 1418 1163 Spaces Moved 5725 | 46 96 517 215 154 360 140 665 279 81 301 565 283 282 930 811 Core 50 | 10 . . . . . . . . . . . . . . 40 Treads 168 | . . . . . . . 1 3 . 164 . . . . . Legs 2517 | . . . . . . . 135 . . 70 565 283 282 930 252 Wheels 2471 | 36 96 517 215 154 360 140 529 276 81 67 . . . . . Hover 519 | . . . . . . . . . . . . . . . 519 Flight . | . . . . . . . . . . . . . . . . Fastest Speed 26 | 50 80 90 90 100 100 100 100 130 150 140 163 156 150 150 26 Average Speed 129 | 82 89 90 96 100 107 100 124 133 150 171 164 156 155 150 111 Slowest Speed 250 | 100 100 90 100 120 130 110 185 190 150 210 170 163 180 150 250 Overloaded Moves . | . . . . . . . . . . . . . . . . Propulsion Burnouts . | . . . . . . . . . . . . . . . . Robots Hopped . | . . . . . . . . . . . . . . . . Cave-ins Triggered . | . . . . . . . . . . . . . . . . Exploration Rate (%) 47 | 3 27 81 60 32 34 4 69 53 69 50 20 47 55 92 67 Regions Visited 15 Branch Regions 11 Pre-discovered Areas 5 | . 1 1 1 . . . . . 1 . . . . 1 . Known Exits Taken 4 | . 1 . . . . . . 1 . 1 1 . . . . Unknown Exits Taken 11 | 1 . 1 1 1 1 1 1 . 1 . . 1 1 1 . Scrap Searched 21 | . . 3 . . . . 4 1 . 2 . 3 3 5 . Spaces Dug 3 | . . . . . . . 1 . . . 2 . . . . Terrain Destroyed 80 | . . . . . 7 . 1 . . . 39 11 7 . 15 Melee . | . . . . . . . . . . . . . . . . Projectile 29 | . . . . . . . 1 . . . 4 7 7 . 10 AOE 51 | . . . . . 7 . . . . . 35 4 . . 5 Terrain Rammed . | . . . . . . . . . . . . . . . . Walls Destroyed . | . . . . . . . . . . . . . . . . Machines Disabled . | . . . . . . . . . . . . . . . . Actions | -11 -10 -10 -10 -9 -8 -7 -7 -7 -7 -6 -6 -6 -6 -6 -6 --------- Run | Scr Mat Min Exi Min Mat Fac Low Low Dat Pro Fac Low Low Zio Dee Total 6761 | 61 120 589 225 195 577 164 797 323 81 342 661 347 328 955 996 Wait 356 | 4 3 38 8 3 78 . 52 11 . 5 32 42 33 10 37 Move 5710 | 45 95 516 214 153 359 139 664 278 80 300 564 282 281 929 811 Hop . | . . . . . . . . . . . . . . . . Pick Up 104 | 5 4 11 1 6 29 5 8 4 . 4 8 . 1 5 13 Fast Attach 91 | 3 2 2 . . 6 6 11 7 . 4 13 3 1 2 31 Attach 73 | 3 . 5 . 4 25 1 7 1 . 4 1 . 2 1 19 Detach 8 | . . . . . . . . . . . . . . 1 7 Swap 33 | 1 . 2 1 . 4 1 7 1 1 4 4 2 . 1 4 Drop 107 | . . 7 1 . 20 8 10 9 . 7 20 3 . 6 16 Fire 278 | . 16 8 . 29 56 4 38 12 . 14 19 15 10 . 57 Melee 1 | . . . . . . . . . . . . . . . 1 Ram . | . . . . . . . . . . . . . . . . Kick . | . . . . . . . . . . . . . . . . Crush . | . . . . . . . . . . . . . . . . Escape Stasis . | . . . . . . . . . . . . . . . . Rewire . | . . . . . . . . . . . . . . . . Trap . | . . . . . . . . . . . . . . . . Miscellaneous . | . . . . . . . . . . . . . . . . Route ------- -11/Scrapyard -10/Materials -10/Mines (discovered 3 exits: [*Mat x2] / *Exi) -10/Exiles -9/Mines -8/Materials -7/Factory -7/Lower Caves -7/Lower Caves (discovered 2 exits: *Fac / *Dat) -7/Data Miner -6/Proximity Caves -6/Factory (discovered 4 exits: *Low x2 / Ext x2) -6/Lower Caves -6/Lower Caves -6/Zion (discovered 2 exits: [*Dee] / [*Pro]) -6/Deep Caves History --------- Turn | Location | Event 9 | -11/Scrapyard | Discovered new exit (range 16) 57 | -11/Scrapyard | Entered Materials 150 | -10/Materials | Discovered new exit (range 17) 150 | -10/Materials | Identified exit to Mines 197 | -10/Materials | Entered Mines 203 | -10/Mines | Assisted by bots powering up and referring to "LRC-V3" 213 | -10/Mines | Discovered new exit (range 7) 259 | -10/Mines | Learned Materials security intel 270 | -10/Mines | A weapon hastily lodged in a ceiling crevice suddenly fell to the ground 315 | -10/Mines | Build established: Mutant 481 | -10/Mines | Discovered new exit (range 7) 494 | -10/Mines | Joined a pair of Derelicts in attacking an 0b10 outpost 503 | -10/Mines | Learned location of Storage (-8) 636 | -10/Mines | Deemed a non-threat by the Exiles lab entrance 636 | -10/Mines | Discovered new exit (range 5) 746 | -10/Mines | Entered Exiles 769 | -10/Exiles | Met 8R-AWN 783 | -10/Exiles | Met EX-HEX 807 | -10/Exiles | Build established: Scavenger-Mutant 844 | -10/Exiles | Met EX-DEC 864 | -10/Exiles | Learned location of Zion (-6) 883 | -10/Exiles | Met EX-BIN 951 | -10/Exiles | Discovered new exit (range 14) 963 | -10/Exiles | Entered Mines 995 | -9/Mines | Core integrity fell below 50% 1058 | -9/Mines | Discovered new exit (range 9) 1217 | -9/Mines | Entered Materials 1217 | -8/Materials | Evolved 4 slots: Utility x3, Weapon x1 1386 | -8/Materials | Garrison activated, responded to threat 1584 | -8/Materials | Lost 3 parts (1u2w) 1717 | -8/Materials | Build established: Scavenger-Gunner 1828 | -8/Materials | Lost 3 parts (1p1n1w) 1914 | -8/Materials | Discovered new exit (range 5) 1936 | -8/Materials | Entered Factory 1936 | -7/Factory | Evolved 2 slots: Propulsion x1, Utility x1 2064 | -7/Factory | Discovered new exit (range 4) 2109 | -7/Factory | Entered Lower Caves 2160 | -7/Lower Caves | Attracted the attention of an 0b10 base 2190 | -7/Lower Caves | Learned 6 Upper Caves zone layouts 2190 | -7/Lower Caves | Learned Research security intel 2190 | -7/Lower Caves | Learned Armory terminal intel 2258 | -7/Lower Caves | Lost 5 parts (2n1u2w) 2666 | -7/Lower Caves | Spotted B-75 Beast 2778 | -7/Lower Caves | Build established: Scavenger-Mutant 2998 | -7/Lower Caves | Destroyed B-75 Beast 3027 | -7/Lower Caves | Lost 4 parts (2u2w) 3104 | -7/Lower Caves | Discovered new exit (range 5) 3118 | -7/Lower Caves | Learned location of 1 exit from Lower Caves 3144 | -7/Lower Caves | Entered another Lower Caves area 3145 | -7/Lower Caves | Identified exit to Data Miner 3198 | -7/Lower Caves | Discovered new exit (range 15) 3367 | -7/Lower Caves | Learned location of 1 exit from Proximity Caves 3435 | -7/Lower Caves | Attracted the attention of an 0b10 checkpoint 3585 | -7/Lower Caves | Entered Data Miner 3585 | -7/Data Miner | Discovered new exit (range 6) 3614 | -7/Data Miner | Met Data Miner 3644 | -7/Data Miner | Learned location of Section 7 (-2) 3644 | -7/Data Miner | Acquired the access code to Warlord's prototype stash 3674 | -7/Data Miner | Received God Mode back door access code from Data Miner 3707 | -7/Data Miner | Entered Proximity Caves 3708 | -6/Proximity Caves | Identified exit to Factory 3774 | -6/Proximity Caves | Lost 4 parts (1n2u1w) 3845 | -6/Proximity Caves | Learned location of 1 exit from Proximity Caves 4073 | -6/Proximity Caves | Build established: Scavenger-Tank 4151 | -6/Proximity Caves | Escorted by Enhanced Grunt 4292 | -6/Proximity Caves | Entered Factory 4292 | -6/Factory | Accompanied by 1 ally 4292 | -6/Factory | Evolved 2 slots: Power x1, Utility x1 4952 | -6/Factory | Spotted B-75 Beast 5155 | -6/Factory | Garrison activated, responded to threat 5272 | -6/Factory | Discovered new exit (range 16) 5282 | -6/Factory | Identified exit to Lower Caves 5282 | -6/Factory | Identified exit to Extension 5349 | -6/Factory | Entered Lower Caves 5547 | -6/Lower Caves | Build established: Scavenger-Mutant 5556 | -6/Lower Caves | Attracted the attention of an 0b10 checkpoint 5842 | -6/Lower Caves | Learned location of 2 exits from Factory 5862 | -6/Lower Caves | Discovered new exit (range 7) 5886 | -6/Lower Caves | Entered another Lower Caves area 6238 | -6/Lower Caves | Lost 3 parts (1n1u1w) 6280 | -6/Lower Caves | Learned Factory interactive machine intel 6357 | -6/Lower Caves | Discovered new exit (range 7) 6390 | -6/Lower Caves | Entered Zion 6417 | -6/Zion | Acquired unknown access codes intercepted by a Zionite 6552 | -6/Zion | Discovered new exit (range 12) 6601 | -6/Zion | Build established: Scavenger-Tank 6690 | -6/Zion | Given the Hacking Drone Bay 6691 | -6/Zion | Found Prototype Device 6692 | -6/Zion | Identified Hacking Drone Bay 6758 | -6/Zion | Learned location of Quarantine (-3) 7063 | -6/Zion | Learned Factory emergency access door positions 7115 | -6/Zion | Learned Factory non-interactive machine intel 7307 | -6/Zion | Build established: Scavenger-Gunner 7460 | -6/Zion | Found CR-A16's Pointy Stick 7486 | -6/Zion | Learned Factory terminal intel 7594 | -6/Zion | Imprinted 7596 | -6/Zion | Declared Zion's savior 7771 | -6/Zion | Opened final containment barrier to the Deep Caves 7792 | -6/Zion | Discovered new exit (range 5) 7795 | -6/Zion | Saw the warning signs outside the Deep Caves entrance 7808 | -6/Zion | Entered Deep Caves 7808 | -6/Deep Caves | Accompanied by 4 allies 8022 | -6/Deep Caves | Build established: Scavenger-Tank 8155 | -6/Deep Caves | Attacked by Z-Imprinter 8195 | -6/Deep Caves | Destroyed Z-Imprinter 8246 | -6/Deep Caves | Found Prototype Protection 8246 | -6/Deep Caves | Identified Zio. Weapon Casing 8249 | -6/Deep Caves | Core integrity fell below 50% 8259 | -6/Deep Caves | Found Prototype Device 8262 | -6/Deep Caves | Identified Zio. Metafield Generator 8268 | -6/Deep Caves | Found Zio. Weapon Casing 8273 | -6/Deep Caves | Lost 19 parts (3p4n5u7w) 8293 | -6/Deep Caves | Found Zio. Weapon Casing 8341 | -6/Deep Caves | Z-Facility disabled 8367 | -6/Deep Caves | Core integrity fell below 20% 8393 | -6/Deep Caves | Lost 10 parts (2p4n4u) 8464 | -6/Deep Caves | Found Prototype Protection 8464 | -6/Deep Caves | Identified Zio. Heavy Carapace 8480 | -6/Deep Caves | Found Zio. Weapon Casing 8508 | -6/Deep Caves | Found Zio. Weapon Casing 8567 | -6/Deep Caves | Found Zio. Weapon Casing 8770 | -6/Deep Caves | Build established: Scavenger-Mutant 8832 | -6/Deep Caves | Found Zio. Heavy Carapace 8958 | -6/Deep Caves | Spotted as-24020 8962 | -6/Deep Caves | Exposed GOLEM chamber 8971 | -6/Deep Caves | Destroyed by as-24020 with Assembled Focal Cannon Last Messages --------------- 08639_ Machine disabled. 08645_ Destroyed Asb. Hover Unit. 08646_ Zio. Glidesys I destroyed. 08646_ System corrupted by crushing effect (+1). 08646_ Knocked back. 08651_ as-24319 destroyed. 08654_ Overheating: Zio. Glidesys I damaged (-12). 08655_ Acquired 17 matter. 08670_ System corrupted: Energy discharge (-275). 08688_ System corrupted: Component data lost. 08802_ Acquired Zio. Composite Leg I. 08832_ Dropped Zio. Heavy Carapace. 08832_ Acquired Zio. Heavy Carapace. 08962_ as-24020: "DSI9AT1D G8OHIBQ29FWG 26R186 QD12WHW8W33 TDK1 81FTS" 08964_ 57-ZS5(h) destroyed. 08964_ Zio. Glidesys I destroyed. 08968_ Zio. Heavy Carapace destroyed. 08968_ Zio. Biocell destroyed. 08968_ Zio. Laser-S destroyed. 08971_ Zio. Glidesys I destroyed. Map ----- +----------------------------------------------------+ | ????????????????????????????????? ??????????? | | ????????????????????????????????? #?????????? | | ?????????????????????????????????? #######??? | | ??????????????????????????????????# ###? | | ??????????????????????????????????# ? | | ??????????????????????????????????# ?? | | ??????????????????????????????????# ??? | | ?????????????????????????????????## #### | | ???????????????????????????????### ## # | | ?????????????????????? #???## #"# | | ???????????????????? #??# | | ????????????????? = ??# | | ??????????????? #???# | | ????????????? *l ##??# | | ????????????? * = g #??# """ | | ???????????? * g #??# " ## | | ???????????? = #?## ### | | ??????????? g= ### ##?? | | ??????????? ! ## ###??? | | ??????????? ## ###??### | | ?????????? ] ## ##????# | | ?????????? * * ## ##?????# | | ?????????" g= ## ##??????# | | ????????? g ! ] l ## ##???????# | | ????????? * ## #???????## | | ????????? = * @ ## ##??????## | | ?????????G b ####??????## | | ??????????" #?????????# | | ?????????? = #?????????# | | ?????????? #####?????????# # | | ??????????? s #?????????????## ## | | ??????????? ##??????????????###?? | | ??????????? # # #???????????????????? | | ???????????? #### ## ## ##???????????????????? | | ???????????? #????# ?# ?###????????????????????? | | ???????????????????#??# ????????????????????????? | | ???????????????????????#????????????????????????? | | | | | | | | | | | | | | | | | | | | | | | | | | | +----------------------------------------------------+ Best States ------------- Heat Dissipation 75 Coolant Potential 65 Energy Generation 49 Energy Capacity 1125 Matter Stores 500 Matter Capacity 500 Sight Range 16 Terrain Scan Range 20 Terrain Scan Density 10 Jamming Range 14 Cloak Strength 3 Armor Coverage 1600 Core Shielding 20 Weapon Shielding 100 Evasion (%) 59 Targeting Accuracy 8 Recoil Reduction 3 Item Schematics ----------------- Combat Drone Bay | -7/Data Miner | Free Lgt. Regenerative Plating | -7/Data Miner | Free Plasma Sword | -7/Data Miner | Free Robot Schematics ------------------ G-50 Soldier | -7/Data Miner | Free I-36 Angel | -7/Data Miner | Free P-70 Sage | -7/Data Miner | Free G-67 Veteran | -7/Data Miner | Free Fabricated ------------ Nothing Alien Tech Used ----------------- None Achievements -------------- None Challenges ------------ None Game ------ Seed BurstWeaponBlade Manual? 0 Play Time 01:18:33 Cumulative 213.6 hours Start 2021.05.10 @ 06:34:27 End 2021.05.10 @ 07:52:04 Sessions 1 Manual Loads 0 Difficulty Rogue Special Mode None Game No. 87 Rogue 87 Adventurer 0 Explorer 0 Win Type - Total 4 Types 4/0/0/0/0/0/0/0/0 Lore% 66 Gallery% 78 Achievement% 58 Wizard Run 0 Options --------- ASCII 0 Keyboard 0 Movement Mouse Keybinds 0 Fullscreen 2 Font 12/Smallcaps Map View 83x54 Tactical HUD 1 Map Filters NONE Filters NONE Steam X RUN: 002c394b-a2fb-453e-a54c-79d131c0db8a